Cogmind - Beta 12 @@@ ROGUE MODE // 2023.12.02 @ 22:04:41 Player: Red Box Result: Self-destructed Performance ------------- Evolutions (2) 1000 Regions Visited (5) 1000 Robots Destroyed (75) 375 Value Destroyed (2233) 2233 Prototype IDs (9) 180 Alien Tech Used (0) 0 Bonus (265) 265 TOTAL SCORE: 5053 Bonus ------- High Alert Combat Kills 187 Follower Combat Kills 78 Cogmind --------- Core Integrity 497/550 Matter 300/300 Energy 280/280 System Corruption 2% Temperature Cool (0) Movement Rolling (105) Ox1 Location -8/Materials Parts ------- > --- POWER (1) -------- Heavy Ion Engine > --- PROPULSION (2) --- Armored Wheel Armored Wheel > --- UTILITY (6) ------ Improved Heat Sink Large Storage Unit Improved Targeting Computer Core Analyzer Hardened Medium Armor Plating System Shield > --- WEAPON (2) ------- Advanced Beam Cannon Advanced Beam Cannon > --- INVENTORY (15) --- Heavy Ion Engine Cooled Ion Engine Armored Wheel Armored Wheel Armored Wheel High-capacity Matter Pod (200) Experimental Sensor Array Improved Signal Interpreter Hardened Medium Armor Plating Hardened Medium Armor Plating Hardened Medium Armor Plating Shock Rifle Advanced Beam Cannon Mini Grenade Launcher Katana Peak State ------------ > --- POWER ------------ Heavy Ion Engine > --- PROPULSION ------- Armored Wheel Armored Wheel > --- UTILITY ---------- Improved Heat Sink Large Storage Unit Improved Targeting Computer Core Analyzer Improved Light Armor Plating System Shield > --- WEAPON ----------- Advanced Beam Cannon Advanced Beam Cannon > --- INVENTORY -------- Heavy Ion Engine Cooled Ion Engine Armored Wheel Armored Wheel Armored Wheel Improved Heat Sink High-capacity Matter Pod Experimental Sensor Array Improved Signal Interpreter Hardened Medium Armor Plating Shock Rifle Advanced Beam Cannon Mini Grenade Launcher Katana [Rating: 33] Favorites ----------- Power Ion Engine Engine Ion Engine Power Core Nuclear Core Propulsion Improved Treads Treads Improved Treads Leg Aluminum Leg Wheel Armored Wheel Utility Large Storage Unit Device Improved Terrain Scanner Storage Large Storage Unit Processor Improved Targeting Computer Hackware System Shield Protection Light Armor Plating Weapon Heavy EM Pulse Gun Energy Gun Heavy EM Pulse Gun Energy Cannon Advanced Beam Cannon Ballistic Gun Light Assault Rifle Launcher Mini Grenade Launcher Impact Weapon Mace Build | -11 -10 -10 -9 -9 -8 ------- Run | Jun Mat Min Mat Min Mat Slots Evolved 4 | . . . 2 . 2 Power . | . . . . . . Propulsion . | . . . . . . Utility 4 | . . . 2 . 2 Weapon . | . . . . . . Parts Attached 77 | 7 15 . 34 2 19 Power 7 | 1 1 . 5 . . Engine 6 | 1 1 . 4 . . Core 1 | . . . 1 . . Reactor . | . . . . . . Propulsion 14 | 2 4 . 6 1 1 Treads 4 | . 1 . 2 1 . Leg 4 | 2 2 . . . . Wheel 6 | . 1 . 4 . 1 Hover . | . . . . . . Flight . | . . . . . . Utility 18 | 2 2 . 7 1 6 Device 4 | 1 . . 2 . 1 Storage 3 | 1 2 . . . . Processor 2 | . . . 1 . 1 Hackware 1 | . . . . . 1 Protection 8 | . . . 4 1 3 Artifact . | . . . . . . Weapon 38 | 2 8 . 16 . 12 Energy Gun 19 | 2 3 . 12 . 2 Energy Cannon 10 | . . . 2 . 8 Ballistic Gun 3 | . 3 . . . . Ballistic Cannon . | . . . . . . Launcher 4 | . 1 . 1 . 2 Special Weapon . | . . . . . . Impact Weapon 2 | . 1 . 1 . . Slashing Weapon . | . . . . . . Piercing Weapon . | . . . . . . Special Melee Weapon . | . . . . . . Unidentified Prototypes 4 | . . . 4 . . Parts Lost 8 | . 1 . 3 . 4 Power . | . . . . . . Propulsion 1 | . . . . . 1 Utility 2 | . . . 1 . 1 Weapon 5 | . 1 . 2 . 2 Highest Loss Streak 4 | . 1 . 1 . 4 To Critical Strikes . | . . . . . . Average Slot Usage (%) 99 | . 99 100 98 100 98 Engine 9 | . 14 14 5 11 9 Core 2 | . . . 5 . . Treads 7 | . 2 14 11 11 3 Leg 7 | . 23 . . . . Wheel 8 | . 2 14 11 11 14 Device 12 | . 14 14 12 11 8 Storage 11 | . 14 14 11 11 9 Processor 6 | . . . 8 11 18 Protection 6 | . . . 10 11 9 Energy Gun 14 | . 16 14 20 . 2 Energy Cannon 4 | . . . . 22 14 Ballistic Gun 4 | . 10 14 . . . Naked Turns . | . . . . . . Heaviest Build 45 | 14 30 30 40 40 45 Greatest Support 24 | 20 20 10 23 12 24 Greatest Overweight (x) 4 | 4 2 2 3 3 3 Average Overweight (x) 2 | . . 2 2 3 1 Largest Inventory Capacity 15 | 8 15 15 15 15 15 Average Capacity 14 | 7 12 15 15 15 15 Most Carried 15 | 7 15 15 15 15 15 Average Carried 13 | 4 10 14 14 14 14 Final Capacity 15 | 8 15 15 15 15 15 Final Carried 15 | 7 14 15 14 15 15 Class Distribution -------------------- 100% | Mutant Dominant Class ---------------- Mutant | -10/Materials Mutant | -10/Mines Mutant | -9/Materials Mutant | -9/Mines Mutant | -8/Materials Resources | -11 -10 -10 -9 -9 -8 ----------- Run | Jun Mat Min Mat Min Mat Matter Collected 1447 | 270 552 . 371 40 214 Remotely . | . . . . . . Salvage Created 2833 | 95 346 . 1556 183 653 Parts 163 | 4 19 . 99 10 31 Haulers Intercepted 5 | . 1 . 4 . . Recyclers Shooed . | . . . . . . Parts Field Recycled . | . . . . . . Retrieved Matter . | . . . . . . Parts Self-Destructed . | . . . . . . Prevented . | . . . . . . Kills | -11 -10 -10 -9 -9 -8 ------- Run | Jun Mat Min Mat Min Mat Combat Hostiles Destroyed 58 | . 6 . 32 6 14 Guns 28 | . 3 . 22 . 3 Cannons 13 | . . . . 6 7 AOE 15 | . 3 . 8 . 4 Classes Destroyed 11 | 2 3 . 5 . 1 Worker 2 | . . . 2 . . Tunneler 1 | 1 . . . . . Hauler 5 | . 1 . 4 . . Recycler 1 | 1 . . . . . Watcher 8 | . 3 . 5 . . Swarmer 12 | . . . 9 3 . Grunt 29 | . 6 . 13 2 8 Brawler 2 | . . . 1 1 . Duelist 2 | . . . 1 . 1 Sentry 11 | . . . 8 . 3 Hunter 2 | . . . . . 2 Best Kill Streak 10 | 2 4 . 10 3 5 Combat Bots Only 8 | . 4 . 8 3 5 Max Kills in Single Turn 5 | 1 3 . 5 2 2 Gunslinging 1 | . . . 1 . . Exploded 4 | . 3 . 4 . 2 Melee . | . . . . . . Uniques/NPCs Destroyed . | . . . . . . Combat | -11 -10 -10 -9 -9 -8 -------- Run | Jun Mat Min Mat Min Mat Damage Taken 1930 | . 268 15 900 62 685 Core 223 | . 68 . 102 . 53 Absorbed by Shields . | . . . . . . Redirected to Shielding 11 | . . . . . 11 Regen/Repaired (Parts) 64 | . 53 . 11 . . Core Remaining (%) 82 | 100 . 72 . 74 . Volleys Fired 176 | 6 42 . 87 6 35 Largest 2 | 2 2 . 2 2 2 Hottest 136 | 90 90 . 110 136 136 Shots Fired 337 | 12 77 . 171 12 65 Gun 272 | 12 75 . 169 . 16 Cannon 56 | . . . . 12 44 Launcher 9 | . 2 . 2 . 5 Special . | . . . . . . Kinetic 45 | . 37 . 8 . . Thermal 105 | 12 38 . 12 12 31 Explosive 8 | . 2 . 2 . 4 Electromagnetic 179 | . . . 149 . 30 Robot Hit Streak 14 | 5 9 . 14 7 9 Robot Miss Streak 5 | 2 5 . 4 1 2 Penetration Max . | . . . . . . Secondary Targets 3 | . 1 . 2 . . Max Gunslinging Chain 1 | . 1 . 1 . . Shots Hit Robots 208 | 8 33 . 111 8 48 Core Hits 122 | 3 26 . 57 6 30 Critical Kills 1 | . . . 1 . . Critical Parts Destroyed . | . . . . . . Critical Strikes 8 | . . . 7 . 1 Burn 2 | . . . 2 . . Destroy 1 | . . . 1 . . Corrupt 5 | . . . 4 . 1 Melee Attacks 7 | . 5 . 2 . . Impact 7 | . 5 . 2 . . Slashing . | . . . . . . Piercing . | . . . . . . Sneak Attacks . | . . . . . . Combat Hostiles . | . . . . . . Follow-up Attacks . | . . . . . . Damage Inflicted 4628 | 94 614 . 2343 197 1380 Guns 2275 | 94 355 . 1636 . 190 Cannons 830 | . . . . 197 633 Explosions 1517 | . 259 . 701 . 557 Melee . | . . . . . . Ramming 6 | . . . 6 . . Kinetic 188 | . 138 . 50 . . Thermal 1552 | 94 217 . 536 197 508 Explosive 1044 | . 259 . 331 . 454 Electromagnetic 1838 | . . . 1420 . 418 Impact . | . . . . . . Slashing . | . . . . . . Piercing . | . . . . . . Highest Corruption 2 | . . . 1 1 2 Average Corruption 1 | . . . 1 1 2 Corruption Purged . | . . . . . . Corruption Blocked . | . . . . . . Effects 27 | . . . 16 7 4 Message Errors 7 | . . . 5 2 . Matter Fused 4 | . . . 2 2 . Heat Flow Errors 2 | . . . 1 . 1 Energy Discharges 3 | . . . 1 1 1 Parts Rejected 1 | . . . . . 1 Data Loss (minor) 5 | . . . 3 1 1 Data Loss (major) 2 | . . . 2 . . Misfires 1 | . . . 1 . . Alerts 2 | . . . 1 1 . Overload Shots . | . . . . . . Overflow Damage 16 | . . . 16 . . Projectiles . | . . . . . . Explosions 16 | . . . 16 . . Melee . | . . . . . . Knockbacks 1 | . . . 1 . . Impact 1 | . . . 1 . . Kinetic . | . . . . . . Secondary . | . . . . . . Self-Inflicted Damage 78 | . . . 57 . 21 Shots 3 | . . . 2 . 1 Rammed 1 | . . . 1 . . Targets Rammed 1 | . . . 1 . . Kicked . | . . . . . . Crushed . | . . . . . . Highest Temperature 454 | 120 116 . 454 144 245 Average Temperature 61 | 51 38 . 72 64 64 Received Heat Transfer 708 | . 177 . 231 12 288 Effects 1 | . . . 1 . . Shutdowns 1 | . . . 1 . . Siege Activations . | . . . . . . Robots Corrupted 2 | . . . 2 . . Combat Hostiles 2 | . . . 2 . . Parts Fried 7 | . . . 6 . 1 Impact Corruptions . | . . . . . . Robots Melted . | . . . . . . Combat Hostiles . | . . . . . . Parts Melted 4 | . . . 2 . 2 Heat Transferred 2773 | 260 511 . 768 333 901 Parts Sabotaged . | . . . . . . Parts Stolen . | . . . . . . Parts Stripped . | . . . . . . Power Chain Reactions 8 | . . . 7 . 1 Missiles Intercepted . | . . . . . . Alert | -11 -10 -10 -9 -9 -8 ------- Run | Jun Mat Min Mat Min Mat Peak Influence 719 | 10 163 51 719 401 544 Initial 261 | . 6 8 19 261 78 Average 254 | 3 39 15 419 283 336 Maximum Alert Level 3 | . . . 3 2 2 Low Security (%) 43 | 100 100 100 13 . 23 Level 1 22 | . . . 21 79 36 Level 2 33 | . . . 64 20 40 Level 3 . | . . . 1 . . Level 4 . | . . . . . . Level 5 . | . . . . . . High Security . | . . . . . . Max Security . | . . . . . . Squads Dispatched 8 | . . . 5 . 3 Investigation 7 | . . . 4 . 3 Extermination . | . . . . . . Reinforcement . | . . . . . . Assault 1 | . . . 1 . . Garrison . | . . . . . . Intercept . | . . . . . . Searches Triggered . | . . . . . . Construction Impeded . | . . . . . . Haulers Reinforced . | . . . . . . Active Scanning Responses . | . . . . . . Cargo Convoy Interrupts . | . . . . . . Stealth | -11 -10 -10 -9 -9 -8 --------- Run | Jun Mat Min Mat Min Mat Distress Signals 2 | . 1 . . . 1 Communications Jammed . | . . . . . . Distress Signals . | . . . . . . Times Spotted 89 | . 19 . 43 4 23 Peak Tracking Total 7 | . 5 . 7 3 6 Tactical Retreats 3 | . . . 3 . . Traps | -11 -10 -10 -9 -9 -8 ------- Run | Jun Mat Min Mat Min Mat Traps Triggered 6 | . 3 . 1 . 2 Indirectly . | . . . . . . Trap Hack Attempts . | . . . . . . Triggered . | . . . . . . Disarmed . | . . . . . . Reprogrammed . | . . . . . . Reused . | . . . . . . Traps Extracted . | . . . . . . Installed . | . . . . . . Triggered . | . . . . . . Machines | -11 -10 -10 -9 -9 -8 ---------- Run | Jun Mat Min Mat Min Mat Machines Disabled 7 | . 2 . 2 . 3 Max in Single Turn 2 | . 1 . 2 . 1 Machines Repaired . | . . . . . . Machines Sabotaged . | . . . . . . Overloaded Fab Kills . | . . . . . . Hacking | -11 -10 -10 -9 -9 -8 --------- Run | Jun Mat Min Mat Min Mat Machines Accessed 30 | . 11 . 14 . 5 Terminals 21 | . 8 . 9 . 4 Fabricators . | . . . . . . Repair Stations 2 | . 1 . 1 . . Recycling Units 5 | . 2 . 2 . 1 Scanalyzers 2 | . . . 2 . . Garrison Access . | . . . . . . Total Hacks 114 | . 40 . 56 . 18 Successful 67 | . 24 . 32 . 11 Failed 47 | . 16 . 24 . 7 Catastrophic 5 | . 1 . 3 . 1 Database Lockouts . | . . . . . . Manual 81 | . 28 . 37 . 16 Terminals 82 | . 31 . 36 . 15 Fabricators . | . . . . . . Repair Stations 8 | . 4 . 4 . . Recycling Units 18 | . 5 . 10 . 3 Scanalyzers 6 | . . . 6 . . Garrison Access . | . . . . . . Terminal Hacks 22 | . 7 . 12 . 3 Part Schematic 2 | . . . 2 . . Robot Analysis 7 | . 3 . 4 . . Prototype ID Bank 3 | . 2 . . . 1 Branch Access Points 1 | . . . 1 . . Terminal Index 3 | . 1 . 1 . 1 Locate Traps 2 | . 1 . 1 . . Recall Investigation 2 | . . . 1 . 1 Hauler Manifests 1 | . . . 1 . . Registered Components 1 | . . . 1 . . Fabricator Hacks . | . . . . . . Repair Station Hacks 6 | . 4 . 2 . . Scan Component 3 | . 2 . 1 . . Repair 3 | . 2 . 1 . . Recycling Unit Hacks 5 | . 2 . 2 . 1 Report Inventory 4 | . 2 . 1 . 1 Retrieve Components 1 | . . . 1 . . Scanalyzer 2 | . . . 2 . . Insert Component 1 | . . . 1 . . Analyze 1 | . . . 1 . . Garrison Access Hacks . | . . . . . . Unauthorized Hacks 32 | . 11 . 14 . 7 Terminals 22 | . 9 . 7 . 6 Track 5 | . 2 . 2 . 1 Assimilate 3 | . 2 . . . 1 Botnet 10 | . 4 . 4 . 2 Operators 4 | . 1 . 1 . 2 Fabricators . | . . . . . . Repair Stations . | . . . . . . Recycling Units 9 | . 2 . 6 . 1 Reject 3 | . 1 . 2 . . Recyclers 1 | . . . 1 . . Mask 2 | . 1 . 1 . . Tunnel 3 | . . . 2 . 1 Scanalyzers 1 | . . . 1 . . Extract 1 | . . . 1 . . Garrison Access . | . . . . . . Data Cores Recovered . | . . . . . . Used . | . . . . . . Hacking Detections 27 | . 10 . 12 . 5 Full Trace Events 3 | . 1 . 1 . 1 Feedback Events 1 | . . . 1 . . Corruption 1 | . . . 1 . . Feedback Blocked . | . . . . . . Robot Schematics Acquired . | . . . . . . Robots Built . | . . . . . . Authchips . | . . . . . . Time . | . . . . . . Total Robot Build Rating . | . . . . . . Part Schematics Acquired 7 | . . . 7 . . Parts Built . | . . . . . . Authchips . | . . . . . . Time . | . . . . . . Total Part Build Rating . | . . . . . . Parts Repaired 3 | . 2 . 1 . . Time 200 | . 64 . 136 . . Parts Recycled . | . . . . . . Recycled Matter . | . . . . . . Retrieved Matter . | . . . . . . Retrieved Components . | . . . . . . Parts Scanalyzed 1 | . . . 1 . . Part Schematics Acquired 1 | . . . 1 . . Parts Damaged 1 | . . . 1 . . Bothacking | -11 -10 -10 -9 -9 -8 ------------ Run | Jun Mat Min Mat Min Mat Used RIF Installer . | . . . . . . Robots Hacked . | . . . . . . Non-combat . | . . . . . . Combat . | . . . . . . Robot Hacks Applied . | . . . . . . Relay Couplers Released . | . . . . . . Fabnet Peak Effective % . | . . . . . . Robots Rewired . | . . . . . . Allies Hacked . | . . . . . . Hacks Repelled . | . . . . . . Allies | -11 -10 -10 -9 -9 -8 -------- Run | Jun Mat Min Mat Min Mat Total Allies 2 | . 1 1 . . . Largest Group 2 | . 1 2 1 . . Highest-Rated Group 41 | . 10 41 31 . . Highest-Rated Ally 31 | . 10 31 31 . . Total Orders . | . . . . . . Ally Attacks 3 | . . 3 . . . Total Damage 43 | . . 43 . . . Kills 2 | . . 2 . . . Allies Corrupted . | . . . . . . Allies Melted . | . . . . . . Intel | -11 -10 -10 -9 -9 -8 ------- Run | Jun Mat Min Mat Min Mat Robot Analysis Total 7 | . 3 . 4 . . Derelict Logs Recovered 2 | . . 2 . . . Drone Launches . | . . . . . . Drone Recoveries . | . . . . . . Exploration | -11 -10 -10 -9 -9 -8 ------------- Run | Jun Mat Min Mat Min Mat Turns Passed 5890 | 91 1807 245 2463 765 519 Spaces Moved 3628 | 46 1080 158 1497 517 330 Core 17 | 17 . . . . . Treads 2 | . . . 2 . . Legs 883 | 29 854 . . . . Wheels 2726 | . 226 158 1495 517 330 Hover . | . . . . . . Flight . | . . . . . . Fastest Speed 50 | 50 110 110 110 135 105 Average Speed 130 | 121 136 110 129 135 113 Slowest Speed 250 | 250 190 110 240 135 135 Overloaded Moves . | . . . . . . Propulsion Burnouts . | . . . . . . Robots Hopped . | . . . . . . Cave-ins Triggered . | . . . . . . Exploration Rate (%) 60 | 4 99 49 95 90 27 Regions Visited 5 Branch Regions 2 Pre-discovered Areas 4 | . . 1 2 . 1 Known Exits Taken 1 | . . . 1 . . Unknown Exits Taken 4 | 1 1 1 . 1 . Scrap Searched 2 | . . 1 . 1 . Spaces Dug 4 | . 2 . 2 . . Terrain Destroyed 115 | . 14 . 70 . 31 Melee 4 | . 2 . 2 . . Projectile . | . . . . . . AOE 111 | . 12 . 68 . 31 Terrain Rammed . | . . . . . . Walls Destroyed . | . . . . . . Machines Disabled . | . . . . . . Actions | -11 -10 -10 -9 -9 -8 --------- Run | Jun Mat Min Mat Min Mat Total 4458 | 65 1339 229 1845 573 407 Wait 455 | . 167 71 176 38 3 Move 3623 | 45 1079 157 1496 516 330 Hop . | . . . . . . Pick Up 65 | 7 21 1 21 6 9 Fast Attach 25 | 7 3 . 7 . 8 Attach 20 | . 6 . 8 . 6 Detach 2 | . . . 2 . . Swap 32 | . 6 . 19 2 5 Drop 52 | . 10 . 26 5 11 Fire 176 | 6 42 . 87 6 35 Melee 7 | . 5 . 2 . . Ram 1 | . . . 1 . . Kick . | . . . . . . Crush . | . . . . . . Escape Stasis . | . . . . . . Rewire . | . . . . . . Trap . | . . . . . . Miscellaneous . | . . . . . . Route ------- -11/Junkyard -10/Materials (discovered 5 exits: *Mat x3 / [*Min x2]) -10/Mines -9/Materials (discovered 5 exits: *Mat x3 / *Min x2) -9/Mines (discovered 3 exits: *Mat x2 / [*Exi]) -8/Materials (discovered 2 exits: [*Fac] / [*Sto]) History --------- Turn | Location | Event 35 | -11/Junkyard | Discovered new exit (range 14) 92 | -11/Junkyard | Entered Materials 205 | -10/Materials | Discovered new exit (range 10) 276 | -10/Materials | Discovered new exit (range 15) 301 | -10/Materials | Build established: Mutant 446 | -10/Materials | Discovered new exit (range 7) 486 | -10/Materials | Discovered new exit (range 9) 687 | -10/Materials | Discovered new exit (range 9) 917 | -10/Materials | Repaired Ion Engine 956 | -10/Materials | Repaired Imp. Heat Sink 1899 | -10/Materials | Entered Mines 1899 | -10/Mines | Accompanied by 1 ally 1902 | -10/Mines | Received a Mining Laser from a helpful Derelict 1934 | -10/Mines | Learned location of Storage (-8) 1980 | -10/Mines | Assembled infested the area 2124 | -10/Mines | Found a damaged Exp. Sensor Array with a note attached 2127 | -10/Mines | Found Prototype Device 2133 | -10/Mines | Discovered new exit (range 6) 2142 | -10/Mines | Learned Materials non-interactive machine intel 2144 | -10/Mines | Entered Materials 2144 | -9/Materials | Accompanied by 1 ally 2144 | -9/Materials | Evolved 2 slots: Utility x2 2145 | -9/Materials | Loaded intel: 46 non-interactive machine locations 2445 | -9/Materials | Destroyed 8 combat bots 2573 | -9/Materials | Discovered new exit (range 16) 2746 | -9/Materials | Discovered new exit (range 9) 2820 | -9/Materials | Identified exit to Mines 3390 | -9/Materials | Discovered new exit (range 12) 3714 | -9/Materials | Identified Exp. Sensor Array 4058 | -9/Materials | Repaired Broken Exp. Sensor Array? 4134 | -9/Materials | Discovered new exit (range 7) 4544 | -9/Materials | First assault squad dispatched 4607 | -9/Materials | Entered Mines 4773 | -9/Mines | Discovered new exit (range 15) 4879 | -9/Mines | Found a hidden stash of uninstalled traps 4944 | -9/Mines | Discovered new exit (range 16) 5308 | -9/Mines | Deemed a non-threat by the Exiles lab entrance 5308 | -9/Mines | Discovered new exit (range 5) 5372 | -9/Mines | Entered Materials 5372 | -8/Materials | Evolved 2 slots: Utility x2 5611 | -8/Materials | Lost 4 parts (1n1u2w) 5668 | -8/Materials | Discovered new exit (range 6) 5783 | -8/Materials | Discovered new exit (range 11) 5891 | -8/Materials | Self-destructed Last Messages --------------- 05796_ Dropped Particle Cannon. 05796_ C-30 ARC bursts open, deploying its payload. 05796_ H-55 Commando unfolds itself. 05796_ Slug penetrates Wall. 05809_ Carbon-fiber Leg melted. 05809_ H-55 Commando destroyed. 05809_ R-06 Scavenger collects Carbon-fiber Leg. 05813_ Acquired Adv. Beam Cannon. 05818_ K-01 Serf collects debris. 05822_ R-06 Scavenger collects Particle Cannon. 05822_ K-01 Serf collects debris. 05829_ System corrupted: Heat flow error (+279). 05858_ Acquired 20 matter. 05863_ Connecting with Terminal... >>Trojan(Assimilate) Trojan loaded successfully. Testing... System interface override in place. 05877_ Terminal disabled. 05890_ K-01 Serf cleans the Hadron Collector. Map ----- +----------------------------------------------------+ | ??????????????# %!# """ #??# #???????? | | ??????????????#= =+ """ #??# #???????? | | ??????????????# !!# """ #### #???????? | | ??????????????# # *%[ + #???????? | | ??????????????# w############# #???????? | | ????????????k?# a#### ## #???????? | | ??????????????# [ !] < ## #???????? | | ??????????????# ] ## #???????? | | ??????????????+ " ] ######+########? | | ??????????????# T # #? | | ??????????????# " # """ """ #? | | ??????????????# + """ """ "" #? | | ??????????????# # """ """ """ #? | | ??????????????# k ! # S" #? | | ??????????????# # #? | | ???????????########### ##### #########? | | ???????????# # #???###????????? | | ???????????# #% #??????????????? | | ???????????# """ +% #???""?????????? | | ???????????# """ # #??""" ???????? | | ???????????# """ " #u #??""" ????????? | | ???????????# T"#r #? ????????? | | ???????????# ""# #?"""" ????????? | | ???????????# # # """" ??????? | | ???????????########### # """" #?????? | | ?????????????????????# @ k ! #?????? | | ??????????????# k u #########??????? | | ??????????????# ss #??????????????? | | ???????????? s s #??????????????? | | ???????????#####/#########??????????????? | | ????????????????????????????????????????? | | ????????????????????????????????????????? | | ????????????????????????????????????????? | | ????????????????????????????????????????? | | ??????????????????????o?????????????????? | | ????????????????????????????????????????? | | ????????????????????????????????????????? | | ????????????????????????????????????????? | | ????????????????????????????????????????? | | ????????????????????????????????????????? | | ????????????????????????????????????????? | | ????????????????????????????????????????? | | ????????????????????????????????????????? | | ????????????????????????????????????????? | | ????????????????????????????????????????? | | ????????????????????????????????????????? | | ????????????????????????????????????????? | | ????????????????????????????????????????? | | ????????????????????????????????????????? | | ????????????????????????????????????????? | +----------------------------------------------------+ Best States ------------- Heat Dissipation 45 Energy Generation 14 Energy Capacity 280 Matter Stores 300 Matter Capacity 300 Sight Range 16 Terrain Scan Range 16 Terrain Scan Density 10 Armor Coverage 225 Core Shielding 20 Evasion (%) 55 Targeting Accuracy 6 Core Analysis 6 Recoil Reduction 1 Defensive Hacking 10 Item Schematics ----------------- Hcp. Storage Unit | -9/Materials | Hacked Arm. Wheel | -9/Materials | Hacked Exp. Sensor Array | -9/Materials | Scanalyzed Mace | -9/Materials | Extracted Rnf. Ion Engine | -9/Materials | Extracted Shield Generator | -9/Materials | Extracted Wheel | -9/Materials | Extracted Robot Schematics ------------------ None Fabricated ------------ Nothing Alien Tech Used ----------------- None Achievements -------------- None Challenges ------------ None Game ------ Seed ResetMetafiberKit Manual? 0 Play Time 00:55:57 Cumulative 660.3 hours Start 2023.12.02 @ 20:32:32 End 2023.12.02 @ 22:04:41 Sessions 1 Manual Loads 0 Difficulty Rogue Special Mode None Game No. 448 Rogue 448 Adventurer 0 Explorer 0 Win Type - Total 1 Types 1/0/0/0/0/0/0/0/0 Lore% 71 Gallery% 79 Achievement% 60 Wizard Run 0 Options --------- ASCII 0 Keyboard 0 Movement Mouse Keybinds 0 Fullscreen 1 Font 16/SmallcapsGlow Map View 75x55 Tactical HUD 1 Map Filters NONE Filters NONE Steam 1 RUN: fb88527d-4f5a-4c7e-ba48-a273a2671490